bitfinex/quotes_ETHUSD_20241123
["timestamp","ask_amount","ask_price","bid_price","bid_amount"]
[1732391330004,0.04441678,3408.8,3408.6,2.34696]
[1732391330162,0.04441678,3408.8,3408.7,2.34693]
[1732391330503,0.27202179,3409.1,3408.7,2.34693]
[1732391330801,0.31661321,3409.0,3408.7,2.34693]
[1732391330961,0.27202179,3408.9,3408.7,2.34693]
[1732391331162,0.0399751,3408.8,3408.7,2.34693]
[1732391331395,0.31199689,3408.8,3408.7,2.34693]
[1732391332264,0.27202179,3408.8,3408.7,2.34693]
[1732391332483,0.31199689,3408.8,3408.7,2.34693]
[1732391332760,0.31199689,3408.8,3408.5,2.34707]
[1732391332980,0.27202179,3408.7,3408.5,2.34707]
[1732391333298,0.03981791,3408.6,3408.5,2.34707]
[1732391333462,0.3118397,3408.6,3408.5,2.34707]
[1732391334078,0.27202179,3408.6,3408.5,2.34707]
[1732391334292,3.16434,3409.2,3408.5,2.34707]
[1732391334503,3.52579918,3409.1,3408.5,2.34707]
[1732391334805,0.27249498,3409.0,3408.5,2.34707]
[1732391335110,3.29355131,3409.1,3408.5,2.34707]
[1732391335111,0.27249498,3408.9,3408.5,2.34707]
[1732391335261,0.27249498,3408.8,3408.5,2.34707]
[1732391335460,0.27249498,3408.7,3408.5,2.34707]
[1732391335664,0.03993276,3408.7,3408.6,2.05362]
[1732391335864,0.31257206,3408.7,3408.6,2.05362]
[1732391336060,0.2726393,3408.7,3408.6,2.05362]
[1732391336301,0.31257206,3408.7,3408.6,2.05362]
[1732391336669,0.31257206,3408.7,3408.4,2.083075]
[1732391336670,0.31257206,3408.7,3408.4,2.05374]
[1732391337000,0.2726393,3408.6,3408.3,2.0538]
[1732391337168,0.2726393,3408.6,3408.1,0.7772]
[1732391337169,0.2726393,3408.5,3408.1,3.7772]
[1732391337366,0.2726393,3408.4,3408.0,2.05396]
[1732391337603,0.31263737,3408.3,3408.0,2.05396]
[1732391337780,0.27301904,3408.2,3408.0,2.05396]
[1732391337978,0.31248013,3408.1,3408.0,2.05396]
[1732391338512,0.27301904,3408.1,3407.9,3.02933908]
[1732391338797,2.93359,3408.8,3408.2,2.05386]
[1732391339008,0.273045,3408.7,3408.2,2.05386]
[1732391339357,0.273045,3408.6,3408.2,2.05386]
[1732391339503,0.273045,3408.5,3408.3,2.05375]
[1732391339691,0.273045,3408.4,3408.3,2.05375]
[1732391340002,0.31274194,3408.4,3408.3,2.05375]
[1732391340312,0.31274194,3408.4,3408.1,2.08324855]
[1732391340472,0.273045,3408.3,3408.2,2.05387]
[1732391340866,0.273045,3408.8,3408.7,2.05356]
[1732391341113,0.27311011,3408.8,3408.7,2.05356]
[1732391341309,0.31310937,3408.8,3408.7,2.05356]
[1732391341679,0.31310937,3408.8,3408.6,0.02933378]
[1732391341879,0.31310937,3408.8,3408.5,2.05367]
[1732391341880,0.27311011,3408.7,3408.5,2.05367]
[1732391342085,0.27311011,3408.6,3408.5,2.05367]
[1732391342410,0.27311011,3408.6,3408.5,2.05368]
[1732391342571,0.27311011,3408.6,3408.5,2.08301391]
[1732391343519,0.27311011,3408.6,3408.5,2.05368]
[1732391343918,0.31297746,3408.6,3408.5,2.05368]
[1732391344083,0.31293831,3408.6,3408.5,2.05368]
[1732391344284,0.31293831,3408.6,3408.5,2.08301518]
[1732391344590,0.27307096,3408.6,3408.5,3.5821967]
[1732391344790,0.27307096,3408.6,3408.5,3.55286152]
[1732391345208,0.27307096,3408.6,3408.5,3.58219539]
[1732391345379,0.31293831,3408.6,3408.5,3.58219539]
[1732391345582,0.27307096,3408.6,3408.5,3.55286152]
[1732391345783,0.2311,3409.5,3409.0,2.05333]
[1732391346118,0.31356981,3409.4,3409.0,2.05333]
[1732391346322,0.2730738,3409.3,3409.0,2.05333]
[1732391346508,0.04049601,3409.4,3409.3,0.7855]
[1732391346714,3.16357,3410.1,3409.4,2.0531]
[1732391346880,0.27301412,3410.0,3409.4,2.0531]
[1732391347218,0.27301412,3409.9,3409.3,0.7855]
[1732391347429,0.27293626,3409.8,3409.5,2.05308]
[1732391347613,0.27293626,3409.7,3409.6,2.05302]
[1732391348194,0.31371299,3409.7,3409.6,2.05302]
[1732391349009,0.27293626,3409.7,3409.6,2.05302]
[1732391349208,0.27293626,3409.7,3409.6,2.08234623]
[1732391349507,3.16324,3410.5,3409.9,2.05284]
[1732391349708,0.58904531,3410.4,3409.9,2.0528]
[1732391349909,0.27272131,3410.3,3409.9,2.0528]
[1732391350219,0.31014807,3410.2,3409.9,2.0528]
[1732391350425,0.27272131,3410.1,3409.5,2.05307]
[1732391350580,2.96985676,3410.2,3409.7,2.05292]
[1732391350581,0.93106349,3410.0,3409.7,2.05292]
[1732391350783,0.30993388,3409.9,3409.7,2.05292]
[1732391351030,0.27272131,3409.8,3409.7,2.05292]
[1732391352423,3.16328,3410.5,3409.9,2.0528]
[1732391352727,3.16328,3410.5,3409.7,2.83502]
[1732391352728,3.52097429,3410.4,3409.7,2.86434454]
[1732391352929,0.94087672,3410.3,3409.7,2.05292]
[1732391353127,0.27245129,3410.2,3409.8,2.05289]
[1732391353425,0.30987805,3410.2,3409.8,2.05289]
[1732391353625,0.27245129,3410.1,3409.7,2.08224454]
[1732391353788,0.27245129,3410.0,3409.9,2.05279]
[1732391354120,0.30973526,3410.0,3409.9,2.05279]
[1732391355722,0.30973526,3410.0,3409.8,2.05287]
[1732391355899,0.27245129,3409.9,3409.8,2.05287]
[1732391356232,0.30966386,3409.9,3409.8,2.05287]
[1732391356401,0.03721257,3409.9,3409.8,2.05287]
[1732391356611,0.27220183,3409.9,3409.8,2.05287]
[1732391357003,0.3094144,3409.9,3409.8,2.05287]
[1732391358124,0.03721257,3409.9,3409.8,2.05287]
[1732391358431,0.2311,3410.5,3410.0,2.05272]
[1732391358726,0.27216062,3410.4,3410.0,2.05272]
[1732391358935,0.27216062,3410.3,3410.2,2.05266]
[1732391359289,0.30965876,3410.3,3410.2,2.08198142]
[1732391359629,0.30965876,3410.3,3410.2,2.05266]
[1732391360943,0.30965876,3410.3,3410.2,2.08198022]
[1732391361252,0.27216062,3410.3,3410.2,9.16508437]
[1732391361391,3.03034,3412.6,3410.5,0.7804]
[1732391361392,0.2311,3411.5,3410.5,0.7804]
[1732391361597,0.2311,3412.0,3411.4,2.05194]
[1732391361866,0.27209128,3411.4,3411.3,2.052]
[1732391362035,0.03286166,3411.9,3411.8,2.0517]
[1732391362198,0.50323244,3412.3,3411.6,2.05181]
[1732391362393,0.50323244,3412.3,3411.2,0.59660475]
[1732391362394,0.30792868,3412.2,3411.7,2.05175]
[1732391362633,0.27213244,3412.1,3412.0,2.05158]
[1732391363132,0.2311,3412.6,3412.1,2.05152]
[1732391363338,0.2715339,3412.5,3412.2,0.02930344]
[1732391363536,0.2715339,3412.5,3412.4,2.83174]
[1732391363537,0.03085055,3412.5,3412.4,2.83174]
[1732391363708,0.03085055,3412.5,3412.4,2.8610401]
[1732391363908,0.1515279,3413.0,3412.4,3.8097001]
[1732391364107,0.1515279,3413.0,3412.6,2.81119413]
[1732391364108,0.34168069,3413.0,3412.6,2.81119413]
[1732391364365,0.1515279,3413.0,3412.9,5.05104]
[1732391364641,0.1515279,3413.0,3412.9,8.67193097]
[1732391364930,0.1515279,3413.0,3412.9,8.64263413]
[1732391365497,0.1515279,3413.0,3412.9,0.7804]
[1732391365716,0.1015279,3413.0,3412.6,5.83156]
[1732391365922,0.1015279,3413.0,3412.7,2.05113]
[1732391365923,0.14100219,3413.0,3412.7,2.05113]
[1732391366139,0.14100219,3413.0,3412.6,3.7804]
[1732391366355,0.29062812,3413.0,3412.2,2.05144]
[1732391366523,0.03939589,3412.9,3412.2,5.83184]
[1732391366719,0.03939589,3412.9,3412.2,0.7804]
[1732391366957,2.96948589,3412.9,3411.9,0.7804]
[1732391367141,2.9303,3412.7,3411.9,0.7804]
[1732391367347,2.9303,3412.7,3411.8,0.02930211]
[1732391367348,0.03548197,3412.6,3411.5,0.7804]
[1732391367640,2.93067,3412.2,3411.5,0.7804]
[1732391368063,2.97384613,3412.1,3411.5,0.7804]
[1732391368266,2.93084,3412.0,3411.2,3.59159413]
[1732391368555,0.2311,3412.0,3411.2,4.07793754]
[1732391368728,0.0429018,3411.9,3411.2,4.07793754]
[1732391369058,0.0429018,3411.9,3411.3,0.02930857]
[1732391369265,2.9738318,3411.9,3411.3,0.02930925]
[1732391369555,2.93093,3411.9,3411.3,0.02930925]
[1732391369761,0.04281463,3411.8,3411.2,0.7804]
[1732391370119,0.04281463,3411.8,3411.3,0.02930927]
[1732391370358,0.2311,3412.4,3411.3,0.02930927]
[1732391370655,3.1616,3412.4,3411.3,0.02930927]
[1732391370857,2.9307,3412.2,3411.3,0.02930927]
[1732391371015,0.04325043,3412.3,3411.3,0.02930927]
[1732391371340,2.97384043,3412.3,3411.4,0.48822336]
[1732391371541,0.04325043,3412.3,3411.5,0.02930694]
[1732391371860,0.04325043,3412.3,3411.4,0.48822336]
[1732391371861,2.93092,3411.9,3411.4,0.48822336]
[1732391372015,2.93092,3411.9,3411.2,0.7804]
[1732391372358,2.97409052,3411.8,3411.2,0.7804]
[1732391372530,2.93113,3411.7,3411.2,0.7804]
[1732391372729,0.04290617,3411.6,3411.2,0.7804]
[1732391372952,2.93101,3411.8,3411.2,0.7804]
[1732391373199,2.97413335,3411.7,3411.2,0.7804]
[1732391374270,0.04299335,3411.7,3411.3,0.02931007]
[1732391374655,2.93084,3412.0,3411.3,0.02931007]
[1732391374874,0.04290617,3411.6,3411.2,0.7804]
[1732391375175,0.04281899,3411.5,3411.2,0.7804]
[1732391375361,2.9312,3411.6,3411.2,0.7804]
[1732391375566,0.04281899,3411.5,3411.2,0.7804]
[1732391376680,2.93115,3411.7,3411.2,0.7804]
[1732391376947,2.93115,3411.7,3410.9,3.02931053]
[1732391376948,2.93143,3411.3,3410.9,0.7637]
[1732391377111,0.2311,3411.7,3410.6,0.7637]
[1732391377112,2.93175,3411.0,3410.6,0.7637]
[1732391377254,2.93155,3411.2,3410.6,0.7637]
[1732391377697,2.93171,3411.0,3410.6,0.7637]
[1732391378199,2.93155,3411.2,3410.6,0.7637]
[1732391378497,2.93185,3410.9,3410.6,0.7637]
[1732391378702,2.93187,3410.8,3410.2,0.7637]
[1732391378866,2.93205,3410.6,3410.3,0.67948128]
[1732391379067,2.9321,3410.6,3410.3,0.67948128]
[1732391379277,2.93196,3410.7,3410.2,0.7637]
[1732391379597,2.93218,3410.5,3410.2,0.7637]
[1732391379796,2.96717197,3411.0,3410.2,0.7637]
[1732391380007,2.93216,3410.5,3410.2,0.7637]
[1732391381001,2.93216,3410.5,3409.2,3.35922777]
[1732391381002,0.26658197,3410.4,3409.6,0.7637]
[1732391381159,2.93248,3410.1,3409.7,0.02932346]
[1732391381353,2.93248,3410.1,3409.6,0.7637]
[1732391381654,2.93229,3410.3,3409.6,1.045385]
[1732391381860,2.93264,3409.9,3409.3,0.79302408]
[1732391382055,2.93264,3409.9,3409.3,0.7637]
[1732391382269,2.93282,3409.7,3409.3,0.7637]
[1732391382461,2.93282,3409.7,3409.3,1.045401]
[1732391382692,0.2311,3410.4,3409.3,1.045401]
[1732391382894,0.2311,3410.4,3409.0,0.7637]
[1732391382895,2.93307,3409.4,3409.0,0.7637]
[1732391383100,2.93307,3409.4,3409.0,1.04835864]
[1732391383475,2.93307,3409.4,3409.0,0.7637]
[1732391383476,2.93326,3409.2,3409.0,0.7637]
[1732391383769,0.2311,3409.7,3409.0,0.7637]
[1732391383973,2.93332,3409.1,3408.6,0.7637]
[1732391384172,2.93318,3409.3,3408.6,1.10255587]
[1732391384376,5.86586,3409.6,3408.8,2.0535]
[1732391384584,2.93305,3409.5,3408.9,0.02933012]
[1732391384769,2.93309,3409.4,3408.9,0.02933012]
[1732391385095,2.9329,3409.6,3408.9,0.02933042]
[1732391385263,2.93316,3409.3,3408.7,0.31855276]
[1732391385458,0.2311,3409.7,3408.7,0.31855276]
[1732391385675,0.2311,3409.7,3408.6,0.7637]
[1732391385872,2.93366,3408.8,3408.3,0.7637]
[1732391386210,2.93367,3408.7,3408.3,1.04839421]
[1732391386376,2.93367,3408.7,3408.3,0.7637]
[1732391386580,2.93332,3409.1,3408.4,2.08304623]
[1732391386782,2.93343,3409.0,3408.5,0.28467462]
[1732391386968,2.93324,3409.2,3408.4,2.0830736]
[1732391387166,2.93333,3409.1,3408.5,0.28467736]
[1732391387497,2.93333,3409.1,3408.6,0.02933317]
[1732391387909,2.93333,3409.1,3408.5,0.28467736]
[1732391388668,2.93344,3409.0,3408.5,0.28467736]
[1732391388965,2.93358,3408.8,3408.5,0.28467736]
[1732391389292,2.93333,3409.1,3408.3,0.7637]
[1732391389606,0.2311,3409.3,3408.3,0.7637]
[1732391389607,2.9336,3408.8,3408.3,0.7637]
[1732391390501,2.9336,3408.8,3408.3,1.04839047]
[1732391390674,2.93345,3409.0,3408.3,1.04839047]
[1732391391007,2.93323,3409.2,3408.4,2.08307471]
[1732391391302,0.2311,3409.3,3408.5,0.51853252]
[1732391391602,2.93355,3408.9,3408.3,1.04839047]
[1732391391804,2.93355,3408.9,3408.4,0.02933469]
[1732391392007,2.93355,3408.9,3408.3,0.7637]
[1732391392819,2.93342,3409.0,3408.4,2.08304486]
[1732391392976,2.93323,3409.2,3408.6,2.05362]
[1732391393162,2.93323,3409.2,3408.7,0.02933359]
[1732391393362,2.93323,3409.2,3408.6,2.05362]
[1732391393602,2.93323,3409.2,3408.6,2.59266641]
[1732391394109,2.93323,3409.2,3408.6,0.53904641]
[1732391394782,2.93333,3409.1,3408.6,0.53904641]
[1732391394970,2.93333,3409.1,3408.5,2.05366]
[1732391395164,2.93333,3409.1,3408.3,2.81746]
[1732391395375,3.2311,3409.7,3408.3,0.7637]
[1732391395376,2.93367,3408.7,3408.3,0.7637]
[1732391395577,2.93384,3408.5,3407.8,0.7657]
[1732391395795,2.93409,3408.3,3407.8,1.047697]
[1732391396439,2.93368,3408.7,3407.8,1.07703647]
[1732391396592,0.2311,3409.0,3407.9,0.02933876]
[1732391396941,2.93367,3408.7,3407.9,2.08336876]
[1732391397296,2.93357,3408.9,3408.0,2.05398]
[1732391397595,2.93333,3409.1,3408.2,0.7657]
[1732391397801,2.93333,3409.1,3408.5,2.05367]
[1732391397996,0.2311,3409.4,3408.8,2.05346]
[1732391398244,2.93288,3409.7,3408.9,0.02933213]
[1732391398245,2.93305,3409.5,3408.9,0.02933213]
[1732391398525,2.93305,3409.5,3408.8,2.8192]
[1732391398526,2.93305,3409.5,3409.0,0.02933079]
[1732391398727,3.457268,3409.7,3408.8,2.8192]
[1732391398728,2.93316,3409.3,3408.8,0.02933042]
[1732391398932,2.93316,3409.3,3408.7,2.05356]
[1732391399142,0.2311,3409.7,3408.6,2.84865118]
[1732391399143,3.16392,3409.7,3408.6,2.84865118]
[1732391399298,2.93297,3409.6,3408.9,2.05343]
[1732391399810,2.93304,3409.5,3408.7,2.33841512]
[1732391400003,2.93304,3409.5,3408.8,2.36390151]
[1732391400210,3.16392,3409.7,3409.0,2.05337]
[1732391400415,2.93293,3409.6,3409.0,0.02933079]
[1732391400715,2.93309,3409.4,3408.7,2.05355]
[1732391400936,2.93306,3409.5,3408.7,0.49022608]
[1732391401139,2.93306,3409.5,3408.9,2.05343]
[1732391402055,0.03548197,3409.6,3408.6,0.7657]
[1732391402207,0.2311,3409.7,3408.6,2.81927]
[1732391402400,0.2311,3409.7,3408.7,2.08285318]
[1732391402401,2.93312,3409.4,3408.7,2.08285318]
[1732391402605,0.2311,3409.7,3408.6,0.7657]
[1732391402919,2.93313,3409.4,3408.7,2.05356]
[1732391403122,2.93306,3409.5,3408.6,0.7657]
[1732391403123,2.93306,3409.5,3408.8,0.02933123]
[1732391403351,2.93312,3409.4,3408.8,0.02933123]
[1732391403650,2.93325,3409.2,3408.6,2.81931]
[1732391403848,2.93337,3409.1,3408.6,1.047631]
[1732391404012,2.93351,3408.9,3408.6,0.7657]
[1732391404362,2.93337,3409.1,3408.7,0.2925]
[1732391404659,2.93324,3409.2,3408.7,0.2925]
[1732391404823,2.93348,3409.0,3408.7,0.2925]
[1732391405757,2.93355,3408.9,3408.7,0.2925]
[1732391405959,2.93355,3408.9,3407.8,3.58148281]
[1732391405960,2.934,3408.4,3408.2,0.7657]
[1732391406258,2.93351,3408.9,3408.2,0.7657]
[1732391406414,0.2311,3409.1,3408.3,0.02933676]
[1732391406611,2.93366,3408.8,3408.2,0.7657]
[1732391406853,2.93376,3408.6,3408.2,0.7657]
[1732391407655,2.93418,3408.1,3408.0,0.2925]
[1732391407818,2.93418,3408.1,3407.6,0.2925]
[1732391408516,2.93401,3408.3,3407.6,0.2925]
[1732391408517,2.93453,3407.7,3407.6,0.2925]
[1732391408961,2.93477,3407.5,3407.3,0.2925]
[1732391409129,2.93477,3407.5,3407.2,0.7657]
[1732391409130,2.93487,3407.3,3407.2,0.7657]
[1732391409336,2.93496,3407.2,3406.8,0.7793]
[1732391410061,3.16563,3407.7,3406.8,0.7793]
[1732391410062,2.93463,3407.6,3406.8,0.7793]
[1732391410227,2.93451,3407.8,3407.0,2.05454]
[1732391410434,3.20613356,3407.7,3407.0,2.08388678]
[1732391410617,2.93451,3407.8,3407.0,2.05454]
[1732391410837,0.03548197,3407.7,3406.9,0.28470684]
[1732391411020,0.34972611,3407.8,3406.8,0.7793]
[1732391411021,2.93487,3407.3,3406.8,0.7793]
[1732391411261,2.93513,3407.0,3406.8,0.7793]
[1732391411451,2.9353,3406.8,3406.6,0.01293839]
[1732391411758,2.93519,3407.0,3406.6,0.01293839]
[1732391411918,2.93508,3407.1,3406.6,0.01293839]
[1732391412520,0.2311,3407.5,3406.6,0.01293839]
[1732391412828,2.93454,3407.7,3406.9,0.7793]
[1732391413031,0.2311,3407.9,3406.9,0.7793]
[1732391413032,2.93436,3407.9,3407.0,2.08388831]
[1732391413266,2.9342,3408.1,3407.5,2.05428]
[1732391413622,2.93403,3408.3,3407.7,2.05416]
[1732391413822,2.93403,3408.3,3407.9,0.7793]
[1732391414045,2.93396,3408.4,3407.9,0.7793]
[1732391414257,2.93417,3408.2,3407.9,0.7793]
[1732391414467,0.03548197,3408.3,3407.9,0.7793]
[1732391414670,3.250456,3408.4,3407.9,0.7793]
[1732391414671,0.316506,3408.4,3407.9,0.7793]
[1732391414869,2.93393,3408.4,3407.9,0.7793]
[1732391415452,2.93427,3408.0,3407.9,0.7793]
[1732391415642,2.93436,3407.9,3407.2,2.83376]
[1732391415839,2.93471,3407.5,3407.2,0.7793]
[1732391416078,2.93471,3407.5,3407.0,3.0]
[1732391416079,2.93468,3407.6,3407.0,0.7793]
[1732391416575,0.66493,3408.1,3407.0,0.7793]
[1732391416786,3.16515,3408.3,3407.0,0.7793]
[1732391416787,2.93488,3407.3,3407.0,0.7793]
[1732391416966,2.93453,3407.7,3407.0,2.83389]
[1732391417283,0.293453,3407.6,3407.0,0.7793]
[1732391417485,0.2311,3407.9,3406.6,0.01293839]
[1732391417486,0.03548197,3407.8,3406.7,0.7793]
[1732391417682,2.9351,3407.1,3406.7,0.7793]
[1732391417842,2.9351,3407.1,3406.6,0.01293839]
[1732391417843,2.9353,3406.8,3406.6,0.01293839]
[1732391418041,2.93516,3407.0,3406.6,0.01293839]
[1732391418467,3.16609,3407.2,3406.6,0.01293839]
[1732391418646,2.93507,3407.1,3406.6,0.01293839]
[1732391418855,2.93507,3407.1,3406.6,0.29765123]
[1732391419059,2.9349,3407.3,3406.7,2.05475]
[1732391419258,2.93494,3407.3,3406.6,2.3818226]
[1732391419450,2.93494,3407.3,3406.6,2.09710976]
[1732391420051,2.93479,3407.4,3406.7,2.05472]
[1732391420347,2.93463,3407.6,3407.0,0.7793]
[1732391420762,0.2311,3407.9,3407.0,0.7793]
[1732391420965,0.2311,3408.4,3407.7,2.05416]
[1732391421193,0.27098091,3408.3,3407.8,0.7793]
[1732391421357,3.884854,3408.3,3407.8,0.7793]
[1732391421550,3.61387309,3408.3,3407.8,0.7793]
[1732391421950,3.0,3408.2,3407.8,0.7793]
[1732391423051,2.9341,3408.2,3407.8,0.7793]
[1732391423281,2.93435,3407.9,3407.8,0.7793]
[1732391423496,2.93408,3408.3,3407.5,0.7793]
[1732391423784,3.03548197,3408.4,3407.5,0.7793]
[1732391423785,2.93418,3408.1,3407.5,0.7793]
[1732391423988,2.93431,3408.0,3407.5,0.7793]
[1732391424151,2.93415,3408.2,3407.5,0.7793]
[1732391424350,2.93415,3408.2,3407.6,2.05423]
[1732391424779,3.0,3408.2,3407.5,0.7793]
[1732391424992,2.93429,3408.0,3407.5,0.7793]
[1732391425294,2.93462,3407.6,3407.1,0.7793]
[1732391425653,0.2311,3407.9,3407.1,0.7793]
[1732391425863,2.93484,3407.4,3406.8,0.7793]
[1732391426063,2.93464,3407.6,3406.8,0.7793]
[1732391426064,2.93476,3407.5,3406.9,2.05462]
[1732391426291,2.93495,3407.3,3406.8,0.80865004]
[1732391426613,2.93495,3407.3,3406.5,0.2925]
[1732391426614,2.93496,3407.2,3406.5,0.2925]
[1732391426765,2.93505,3407.1,3406.5,0.2925]
[1732391427599,2.93518,3407.0,3406.5,0.2925]
[1732391427805,0.41724977,3407.6,3406.5,0.2925]
[1732391427806,2.93498,3407.2,3406.5,0.2925]
[1732391428007,3.0,3407.6,3406.5,0.2925]
[1732391428172,2.93514,3407.0,3406.5,0.2925]
[1732391428368,2.93535,3406.8,3406.4,0.7793]
[1732391428979,2.93539,3406.7,3406.4,0.7793]
[1732391429285,2.97087197,3406.7,3406.0,0.7565]
[1732391429493,2.93539,3406.7,3406.0,0.7565]
[1732391430103,0.2311,3407.2,3406.0,0.7565]
[1732391430305,2.93528,3406.9,3406.1,2.05508]
[1732391430509,2.93528,3406.9,3406.2,2.05505]
[1732391430664,2.93513,3407.0,3406.4,2.05491]
[1732391432071,2.93522,3406.9,3406.2,2.05506]
[1732391432284,0.0597613,3406.8,3406.4,2.05493]
[1732391432819,3.251577,3407.2,3406.0,0.7565]
[1732391432820,2.99509993,3406.7,3406.0,0.7565]
[1732391433128,3.59168712,3406.7,3406.0,2.81165]
[1732391433272,2.99509993,3406.7,3406.0,2.81165]
[1732391433484,0.05970993,3406.7,3406.2,2.05507]
[1732391434031,2.9948493,3406.7,3406.1,2.08444532]
[1732391434327,0.0594593,3406.7,3406.6,0.76883839]
[1732391434798,2.93514,3407.0,3406.6,0.76883839]
[1732391435119,0.27141038,3406.9,3406.6,0.76883839]
[1732391435324,0.05956205,3406.9,3406.6,0.76883839]
[1732391436439,0.05956205,3406.9,3406.7,2.05477]
[1732391436604,0.05956205,3406.9,3406.8,2.05471]
[1732391436924,0.05956205,3406.9,3406.6,0.76883839]
[1732391437168,2.93498,3407.2,3406.6,2.82363839]
[1732391437424,0.2717223,3407.1,3406.6,2.82363839]
[1732391437635,0.2717223,3407.1,3406.6,0.76883839]
[1732391437636,0.30720427,3407.0,3406.6,0.76883839]
[1732391437787,0.2717223,3406.9,3406.6,0.76883839]
[1732391437988,0.2717223,3406.8,3406.6,0.76883839]
[1732391438313,0.2717223,3406.7,3406.6,0.76883839]
[1732391438525,0.05951067,3406.8,3406.6,0.76883839]
[1732391438822,0.05939256,3406.7,3406.6,0.76883839]
[1732391439215,2.9353,3406.9,3406.6,0.76883839]
[1732391439418,0.05939256,3406.7,3406.6,0.76883839]
[1732391439725,0.33114051,3406.7,3406.6,0.01293839]
[1732391441635,0.05939256,3406.7,3406.6,0.01293839]
[1732391441797,0.05939256,3406.7,3406.6,2.06776839]
[1732391441996,2.93472,3407.5,3406.7,0.7559]
[1732391442302,0.27173748,3407.4,3407.1,2.0545]
[1732391442491,0.27173748,3407.3,3407.2,0.7559]
[1732391442923,0.27180075,3407.3,3407.2,0.7559]
[1732391443300,0.27180075,3407.6,3407.2,0.7559]
[1732391443503,2.93454,3407.7,3407.2,0.7559]
[1732391443504,0.27180075,3407.5,3407.2,0.7559]
[1732391443837,0.27180075,3407.4,3407.2,0.7559]
[1732391444155,0.05782253,3407.3,3407.2,0.7559]
[1732391444293,0.32962328,3407.3,3407.2,0.7559]
[1732391444719,3.20667075,3407.3,3406.8,0.7559]
[1732391444923,0.27180075,3407.2,3406.8,0.7559]
[1732391445233,0.32963133,3407.2,3406.8,0.7559]
[1732391445430,0.27180075,3407.1,3406.8,3.18298965]
[1732391445654,0.27180075,3407.1,3407.0,2.05459]
[1732391445822,2.9343,3408.0,3407.2,2.05443]
[1732391446024,0.27197446,3407.9,3407.1,0.7559]
[1732391446263,0.27197446,3407.8,3407.2,2.34693]
[1732391446462,0.27197446,3407.8,3407.5,0.7559]
[1732391446631,2.93411,3408.2,3407.5,0.7559]
[1732391446632,3.0,3408.2,3407.5,0.7559]
[1732391446957,3.20619468,3408.1,3407.5,2.81018]
[1732391447162,0.27201468,3408.0,3407.5,2.81018]
[1732391447336,0.27201468,3407.9,3407.5,0.7559]
[1732391447538,0.27201468,3407.8,3407.5,0.7559]
[1732391447763,0.27201468,3407.7,3407.5,0.7559]
[1732391447927,0.27201468,3407.9,3407.5,0.7559]
[1732391448129,0.27201468,3407.8,3407.5,0.7559]
[1732391448321,0.27201468,3407.7,3407.5,0.7559]
[1732391448543,0.27201468,3407.6,3407.5,2.81018]
[1732391448763,0.27201468,3407.6,3407.5,0.7559]
[1732391449131,2.93419,3408.1,3407.5,0.7559]
[1732391449327,0.27194958,3408.0,3407.5,0.7559]
[1732391449758,0.27194958,3408.2,3407.5,2.81015]
[1732391449943,0.27194958,3408.1,3407.5,2.81015]
[1732391450160,2.9343,3408.0,3407.6,0.486454]
[1732391450470,0.27194958,3407.9,3407.5,0.7559]
[1732391450768,0.27194958,3407.8,3407.5,0.7559]
[1732391450970,2.93419,3408.1,3407.5,0.7559]
[1732391451271,0.27186856,3408.0,3407.5,2.81018]
[1732391451496,0.27186856,3407.9,3407.5,2.81018]
[1732391451775,0.27186856,3407.9,3407.7,2.05412]
[1732391451932,0.05515514,3407.8,3407.7,2.05412]
[1732391452134,0.05515514,3407.8,3407.5,0.78524207]
[1732391452382,0.27194901,3407.7,3407.5,0.7559]
[1732391452581,0.27194901,3407.6,3407.5,0.7559]
[1732391452878,0.0550913,3407.6,3407.5,0.7559]
[1732391453083,3.0,3409.0,3407.5,0.7559]
[1732391453084,2.93376,3408.6,3407.5,0.7559]
[1732391453280,0.32750473,3408.5,3408.1,2.81272]
[1732391453509,0.27195139,3408.4,3408.1,0.7588]
[1732391453698,0.27195139,3408.4,3408.2,0.02933693]
[1732391453897,0.05545068,3408.3,3408.2,0.02933693]
[1732391454117,0.32741639,3408.3,3408.1,0.7588]
[1732391454421,0.05545068,3408.3,3408.1,0.7588]
[1732391454780,2.93367,3408.7,3408.1,0.7588]
[1732391455082,2.93402,3408.3,3407.6,0.7588]
[1732391455427,0.32728385,3408.2,3407.6,0.78814109]
[1732391455584,0.2718845,3408.1,3407.6,0.7588]
[1732391455788,0.05539935,3408.2,3407.6,0.7588]
[1732391456035,2.93386,3408.5,3407.7,2.08350111]
[1732391456036,0.05529668,3408.0,3407.7,2.08350111]
[1732391456230,0.05534802,3408.1,3407.8,2.05411]
[1732391456448,2.93367,3408.7,3407.9,1.07408101]
[1732391456644,0.27174819,3408.6,3407.9,1.07408101]
[1732391456815,0.27174819,3408.5,3407.9,1.07408101]
[1732391457022,0.27174819,3408.4,3407.9,0.7588]
[1732391457221,0.27174819,3408.3,3407.9,0.7588]
[1732391457456,2.93376,3408.6,3407.9,0.7588]
[1732391457748,0.2716852,3408.5,3408.0,2.05398]
[1732391457953,2.93376,3408.6,3408.0,2.05398]
[1732391457954,0.2716852,3408.4,3408.0,2.05398]
[1732391458104,0.2716852,3408.5,3408.0,2.05398]
[1732391458316,0.2716852,3408.4,3407.9,2.81284]
[1732391458504,0.05550201,3408.4,3408.0,2.05398]
[1732391458714,2.93369,3408.7,3408.0,2.05398]
[1732391458944,0.05545068,3408.3,3408.1,2.05392]
[1732391459164,3.28552097,3408.8,3408.2,0.2925]
[1732391459165,3.250039,3408.8,3408.2,0.2925]
[1732391459443,0.27164502,3408.7,3408.2,0.2925]
[1732391459649,0.27164502,3408.6,3408.2,2.34636]
[1732391459817,0.27164502,3408.5,3408.2,2.34636]
[1732391460013,2.93351,3408.9,3408.3,2.8126]
[1732391460319,0.27171978,3408.8,3408.3,2.8126]
[1732391460518,0.27171978,3408.7,3408.3,2.8126]
[1732391460749,0.27171978,3408.8,3408.3,2.8126]
[1732391460949,0.27171978,3408.7,3408.3,2.8126]
[1732391461114,0.27171978,3408.6,3408.3,0.7588]